bitfinex/quotes_BTCUSD_20250903
["timestamp","ask_amount","ask_price","bid_price","bid_amount"]
[1756910217268,1.64758739,111980.0,111970.0,0.00146641]
[1756910217508,1.55947044,111980.0,111970.0,0.18008568]
[1756910217713,0.69064475,111980.0,111970.0,0.17908568]
[1756910218987,0.69064475,111980.0,111970.0,0.00046641]
[1756910219196,0.90503743,111980.0,111970.0,0.00046641]
[1756910219635,0.81312144,111980.0,111970.0,0.00046641]
[1756910219838,0.81312144,111980.0,111970.0,0.17908568]
[1756910220041,0.78256074,111980.0,111970.0,0.17908568]
[1756910221895,0.78248074,111980.0,111970.0,0.18122568]
[1756910222113,0.78248074,111980.0,111970.0,0.00046641]
[1756910222334,0.78248074,111980.0,111970.0,0.17908568]
[1756910222543,0.78244074,111980.0,111970.0,0.17908568]
[1756910222937,0.78244074,111980.0,111970.0,0.00046641]
[1756910226079,1.65126643,111980.0,111970.0,0.00046641]
[1756910226683,1.68182713,111980.0,111970.0,0.00046641]
[1756910227086,1.70868184,111980.0,111970.0,0.00046641]
[1756910227527,1.47447002,111980.0,111970.0,0.00046641]
[1756910228242,1.47547002,111980.0,111970.0,0.00046641]
[1756910228575,1.47447002,111980.0,111970.0,0.00046641]
[1756910228781,1.47547002,111980.0,111970.0,0.00046641]
[1756910228982,1.47647002,111980.0,111970.0,0.00046641]
[1756910229730,1.56838601,111980.0,111970.0,0.00046641]
[1756910230087,1.47647002,111980.0,111970.0,0.00046641]
[1756910230290,1.32695844,111980.0,111970.0,0.00046641]
[1756910230511,1.48479844,111980.0,111970.0,0.00046641]
[1756910232212,1.52085154,111980.0,111970.0,0.00046641]
[1756910233065,0.88619767,111980.0,111970.0,0.00046641]
[1756910233265,1.52081154,111980.0,111970.0,0.00046641]
[1756910233690,0.72839767,111980.0,111970.0,0.00046641]
[1756910233894,0.69266697,111980.0,111970.0,0.00257641]
[1756910234116,0.82563226,111980.0,111970.0,0.00257641]
[1756910234321,0.78957916,111980.0,111970.0,0.00257641]
[1756910234535,0.63381916,111980.0,111970.0,0.00257641]
[1756910235000,1.42523303,111980.0,111970.0,0.00257641]
[1756910235205,1.42523303,111980.0,111970.0,0.00046641]
[1756910235364,1.42523303,111980.0,111970.0,0.00257641]
[1756910235563,1.26743303,111980.0,111970.0,0.00257641]
[1756910235767,1.42523303,111980.0,111970.0,0.00257641]
[1756910235976,1.42523303,111980.0,111970.0,0.00046641]
[1756910236208,1.41686461,111980.0,111970.0,0.00046641]
[1756910236400,0.78225074,111980.0,111970.0,0.00257641]
[1756910236630,1.41686461,111980.0,111970.0,0.00257641]
[1756910236825,1.25906461,111980.0,111970.0,0.00257641]
[1756910237032,1.41682461,111980.0,111970.0,0.00257641]
[1756910237293,0.02685298,111990.0,111980.0,0.17860332]
[1756910237510,0.15776,111990.0,111980.0,0.18071332]
[1756910237911,0.33634737,111990.0,111980.0,0.18071332]
[1756910238391,0.33734737,111990.0,111980.0,0.18071332]
[1756910238626,0.17858737,111990.0,111980.0,0.18071332]
[1756910238861,0.33634737,111990.0,111980.0,0.18071332]
[1756910239056,0.18868899,111990.0,111980.0,0.18171332]
[1756910239266,0.34644899,111990.0,111980.0,0.18171332]
[1756910239896,0.35150899,111990.0,111980.0,0.00311]
[1756910240120,0.35150899,111990.0,111980.0,0.001]
[1756910240297,0.19274899,111990.0,111980.0,0.001]
[1756910240505,0.35046899,111990.0,111980.0,0.17960332]
[1756910240698,0.35046899,111990.0,111980.0,0.001]
[1756910241335,0.98508286,111990.0,111970.0,0.17908568]
[1756910241539,0.81625719,111980.0,111970.0,0.00046641]
[1756910241925,0.81827719,111980.0,111970.0,0.00046641]
[1756910242552,0.18366332,111980.0,111970.0,0.00046641]
[1756910242737,0.81827719,111980.0,111970.0,0.00046641]
[1756910243573,0.34138332,111980.0,111970.0,0.00046641]
[1756910243814,1.06787318,111980.0,111970.0,0.00046641]
[1756910244025,1.47655318,111980.0,111970.0,0.00046641]
[1756910244234,1.50711388,111980.0,111970.0,0.00046641]
[1756910244640,1.53396823,111980.0,111970.0,0.00046641]
[1756910245227,2.26565929,111980.0,111970.0,0.00046641]
[1756910245432,2.35957528,111980.0,111970.0,0.00046641]
[1756910245652,2.54291613,111980.0,111970.0,0.00046641]
[1756910246276,0.17869907,111920.0,111910.0,0.07354631]
[1756910246475,0.33917124,111920.0,111910.0,0.07368627]
[1756910246703,0.81255489,111920.0,111910.0,0.07579627]
[1756910246906,0.81255489,111920.0,111910.0,0.00224996]
[1756910247153,0.33637907,111920.0,111910.0,0.18096499]
[1756910247352,0.63385582,111920.0,111910.0,0.18096499]
[1756910247586,0.81077988,111930.0,111920.0,0.17869907]
[1756910247771,0.34525897,111930.0,111920.0,0.17869907]
[1756910247951,0.2473631,111940.0,111920.0,0.18080907]
[1756910248152,0.15768,111930.0,111920.0,0.18354907]
[1756910248310,0.15768,111930.0,111920.0,0.18080907]
[1756910248510,0.3363631,111930.0,111920.0,0.18080907]
[1756910248738,0.3363631,111930.0,111920.0,0.18180907]
[1756910249338,0.3363631,111930.0,111920.0,0.00311]
[1756910249339,0.3414231,111930.0,111920.0,0.00311]
[1756910249536,0.3414231,111930.0,111920.0,0.001]
[1756910249747,1.0535,111930.0,111920.0,0.001]
[1756910249928,1.49426794,111930.0,111920.0,0.001]
[1756910250555,1.49426794,111930.0,111920.0,0.003]
[1756910251181,1.49426794,111930.0,111920.0,0.001]
[1756910251402,0.90466773,111930.0,111920.0,0.001]
[1756910251575,0.51869907,111920.0,111910.0,0.00013996]
[1756910251774,0.70253105,111920.0,111910.0,0.00013996]
[1756910251969,1.32775196,111920.0,111910.0,0.00013996]
[1756910252166,1.39351597,111920.0,111910.0,0.00013996]
[1756910252370,1.23583597,111920.0,111910.0,0.00013996]
[1756910252581,0.67637907,111920.0,111910.0,0.00224996]
[1756910252816,0.67637907,111920.0,111910.0,0.00524996]
[1756910253017,1.30159998,111920.0,111910.0,0.00313996]
[1756910253221,1.30159998,111920.0,111910.0,0.00013996]
[1756910253743,1.30159998,111920.0,111910.0,0.00524996]
[1756910253950,0.68143907,111920.0,111910.0,0.00524996]
[1756910254153,1.30159998,111920.0,111910.0,0.00524996]
[1756910254686,1.30159998,111920.0,111910.0,0.00624996]
[1756910254893,0.67633907,111920.0,111910.0,0.18196499]
[1756910255316,0.67633907,111920.0,111910.0,0.18396499]
[1756910255855,0.18753505,111930.0,111920.0,0.17869907]
[1756910256059,0.34517505,111930.0,111920.0,0.18214935]
[1756910256284,0.34719505,111930.0,111920.0,0.18080907]
[1756910256491,0.34517505,111930.0,111920.0,0.18080907]
[1756910257111,0.3363231,111930.0,111920.0,0.18080907]
[1756910257318,0.34507038,111930.0,111920.0,0.18080907]
[1756910257551,0.15764,111930.0,111920.0,0.18080907]
[1756910257711,0.33911502,111930.0,111920.0,0.18080907]
[1756910257910,0.3413831,111930.0,111910.0,0.17885499]
[1756910258210,0.3413831,111930.0,111920.0,0.00311]
[1756910258411,0.3363231,111930.0,111920.0,0.18180907]
[1756910258617,0.3383431,111930.0,111920.0,0.18180907]
[1756910258956,0.3384031,111930.0,111920.0,0.18080907]
[1756910259157,0.3363231,111930.0,111920.0,0.18080907]
[1756910259502,0.3363231,111930.0,111920.0,0.18380907]
[1756910260808,0.3415631,111930.0,111920.0,0.00511]
[1756910261014,0.96172401,111930.0,111920.0,0.003]
[1756910261673,0.96172401,111930.0,111920.0,0.005]
[1756910262285,0.96172401,111930.0,111920.0,0.002]
[1756910262495,0.3415631,111930.0,111920.0,0.18274907]
[1756910262670,0.3415631,111930.0,111920.0,0.18474907]
[1756910262868,0.3415631,111930.0,111920.0,0.18274907]
[1756910263077,0.10467227,111940.0,111930.0,0.1786831]
[1756910263257,0.41407556,111940.0,111930.0,0.1807331]
[1756910263457,0.23540842,111940.0,111930.0,0.1807331]
[1756910263692,0.06868,111940.0,111930.0,0.1807331]
[1756910263866,0.22628,111940.0,111930.0,0.1807331]
[1756910264226,0.1576,111940.0,111930.0,0.1807331]
[1756910264554,0.89759791,111960.0,111940.0,0.17866714]
[1756910264759,0.3390426,111950.0,111940.0,0.17866714]
[1756910264979,0.34528021,111950.0,111930.0,0.1824231]
[1756910265184,0.34736021,111950.0,111940.0,0.18071714]
[1756910265380,0.18976021,111950.0,111940.0,0.18071714]
[1756910265580,0.34732021,111950.0,111940.0,0.00205]
[1756910265785,0.34732021,111950.0,111940.0,0.18071714]
[1756910266073,0.34524021,111950.0,111940.0,0.18205643]
[1756910266429,0.34732021,111950.0,111940.0,0.18071714]
[1756910267041,0.34732021,111950.0,111940.0,0.00205]
[1756910267205,0.35048021,111950.0,111940.0,0.00205]
[1756910267406,0.35048021,111950.0,111930.0,0.1786831]
[1756910267632,0.17866714,111940.0,111930.0,0.1786831]
[1756910267828,0.17866714,111940.0,111930.0,0.1807331]
[1756910268767,1.0569981,111950.0,111930.0,0.5807331]
[1756910268906,0.34840021,111950.0,111930.0,0.5847331]
[1756910269120,0.96856112,111950.0,111940.0,0.17866714]
[1756910269524,0.97064112,111950.0,111940.0,0.18071714]
[1756910269719,0.62918994,111950.0,111940.0,0.18071714]
[1756910269925,0.07188,111960.0,111950.0,0.17865118]
[1756910270135,0.25014639,111960.0,111950.0,0.18203997]
[1756910270370,0.40487522,111960.0,111950.0,0.18070118]
[1756910270564,0.22624,111960.0,111950.0,0.18070118]
[1756910271206,0.22624,111960.0,111950.0,0.18084114]
[1756910271412,0.53078569,111970.0,111950.0,0.18084114]
[1756910271622,0.63165223,111970.0,111960.0,0.17863522]
[1756910271815,0.79125223,111970.0,111950.0,0.17879114]
[1756910272024,0.18142639,111960.0,111950.0,0.00013996]
[1756910272223,0.18458639,111960.0,111950.0,0.17879114]
[1756910272429,0.18179522,111960.0,111950.0,0.18284114]
[1756910272623,0.34135522,111960.0,111950.0,0.18284114]
[1756910272861,0.18387522,111960.0,111950.0,0.18284114]
[1756910273105,0.34135522,111960.0,111950.0,0.18179114]
[1756910273876,0.34135522,111960.0,111950.0,0.18184114]
[1756910274086,0.34135522,111960.0,111950.0,0.17979114]
[1756910274351,0.34135522,111960.0,111950.0,0.00213996]
[1756910274586,0.97448355,111960.0,111950.0,0.00113996]
[1756910274813,0.18387522,111960.0,111950.0,0.17979114]
[1756910275063,0.33611522,111960.0,111950.0,0.18384114]
[1756910275492,0.34135522,111960.0,111950.0,0.00518996]
[1756910275692,0.34135522,111960.0,111950.0,0.00313996]
[1756910275907,0.34135522,111960.0,111950.0,0.18179114]
[1756910276111,0.33819522,111960.0,111950.0,0.18384114]
[1756910276584,0.34135522,111960.0,111950.0,0.00313996]
[1756910276928,1.05343212,111960.0,111950.0,0.00313996]
[1756910277194,1.48534811,111960.0,111950.0,0.00313996]
[1756910277400,1.39343212,111960.0,111950.0,0.00313996]
[1756910277611,2.25672264,111960.0,111950.0,0.00313996]
[1756910279002,2.25672264,111960.0,111950.0,0.00113996]
[1756910279219,2.25672264,111960.0,111950.0,0.00013996]
[1756910279438,2.34863863,111960.0,111950.0,0.00013996]
[1756910279646,1.54128176,111960.0,111950.0,0.00013996]
[1756910280549,1.29188577,111960.0,111950.0,0.00013996]
[1756910280778,1.23687507,111960.0,111950.0,0.00013996]
[1756910281001,1.39427507,111960.0,111950.0,0.00013996]
[1756910281239,1.23687507,111960.0,111950.0,0.00013996]
[1756910281445,1.39427507,111960.0,111950.0,0.00013996]
[1756910281618,1.44851737,111960.0,111950.0,0.00013996]
[1756910282004,1.4211342,111960.0,111950.0,0.00218996]
[1756910282324,1.4211342,111960.0,111950.0,0.00013996]
[1756910282529,1.39327507,111960.0,111950.0,0.00013996]
[1756910283530,1.39327507,111960.0,111950.0,0.00113996]
[1756910283705,1.48519106,111960.0,111950.0,0.00213996]
[1756910284108,0.7077072,111960.0,111950.0,0.00113996]
[1756910284312,1.48515106,111960.0,111950.0,0.00113996]
[1756910284739,1.48515106,111960.0,111950.0,0.00313996]
[1756910285579,1.48515106,111960.0,111950.0,0.00013996]
[1756910285974,0.80001032,111960.0,111950.0,0.00013996]
[1756910286124,1.42009418,111960.0,111950.0,0.00013996]
[1756910286822,1.42009418,111960.0,111950.0,0.00113996]
[1756910287675,0.80001032,111960.0,111950.0,0.00113996]
[1756910287883,1.26273418,111960.0,111950.0,0.00113996]
[1756910288308,0.02685911,111960.0,111950.0,0.18184114]
[1756910288520,0.15732,111960.0,111950.0,0.18458114]
[1756910288730,0.33595522,111960.0,111950.0,0.18184114]
[1756910289532,0.17863522,111960.0,111950.0,0.18184114]
[1756910289669,0.33595522,111960.0,111950.0,0.18184114]
[1756910290069,0.33792522,111960.0,111950.0,0.00318996]
[1756910290493,0.33792522,111960.0,111950.0,0.18184114]
[1756910291357,0.33595522,111960.0,111950.0,0.18184114]
[1756910291607,0.15732,111960.0,111950.0,0.18184114]
[1756910292061,0.3365115,111960.0,111950.0,0.18458114]
[1756910292282,0.3365115,111960.0,111950.0,0.18184114]
[1756910292718,0.15787628,111960.0,111950.0,0.18184114]
[1756910292913,0.3365115,111960.0,111950.0,0.18184114]
[1756910293340,0.3384815,111960.0,111950.0,0.18184114]
[1756910293563,0.3384815,111960.0,111950.0,0.00318996]
[1756910293759,0.3384815,111960.0,111950.0,0.18184114]
[1756910293966,0.3384815,111960.0,111950.0,0.00318996]
[1756910294181,0.3384815,111960.0,111950.0,0.18184114]
[1756910294630,0.3384815,111960.0,111950.0,0.00318996]
[1756910294782,0.43332749,111960.0,111950.0,0.00113996]
[1756910294984,1.05341135,111960.0,111950.0,0.00113996]
[1756910295186,1.08026863,111960.0,111950.0,0.00113996]
[1756910296077,1.43067053,111960.0,111950.0,0.00113996]
[1756910297598,1.43067053,111960.0,111950.0,0.82700261]
[1756910297599,0.00055628,111960.0,111950.0,0.82700261]
[1756910297797,0.00055628,111960.0,111950.0,0.17865118]
[1756910298000,0.39055628,111960.0,111950.0,0.17865118]
[1756910298203,0.20779628,111960.0,111950.0,0.17865118]
[1756910298625,0.78133288,111960.0,111950.0,0.17865118]
[1756910298833,0.60072628,111960.0,111950.0,0.17865118]
[1756910299048,0.59779628,111960.0,111950.0,0.17865118]
[1756910299273,0.59779628,111960.0,111950.0,0.18165118]
[1756910299274,0.39055628,111960.0,111950.0,0.18165118]
[1756910299471,0.34055628,111960.0,111950.0,0.18165118]
[1756910299676,0.39055628,111960.0,111950.0,0.17865118]
[1756910299877,0.39055628,111960.0,111950.0,0.18365118]
[1756910300080,0.39055628,111960.0,111950.0,0.18165118]
[1756910300483,0.34055628,111960.0,111950.0,0.18565118]
[1756910300616,0.34055628,111960.0,111950.0,0.18265118]
[1756910300819,0.00055628,111960.0,111950.0,0.33585118]
[1756910301020,0.00055628,111960.0,111950.0,0.43176717]
[1756910301684,0.00055628,111960.0,111950.0,0.83176717]
[1756910302064,0.00055628,111960.0,111950.0,0.83476717]
[1756910302404,0.05055628,111960.0,111950.0,0.83476717]
[1756910303400,0.1,111970.0,111950.0,0.85570599]
[1756910303610,0.05,112010.0,112000.0,0.00892857]
[1756910303817,0.00293,112020.0,112000.0,0.00892857]
[1756910303818,0.17052,112020.0,112000.0,0.18747147]
[1756910304034,0.21009,112020.0,112010.0,0.17855548]
[1756910304242,0.21206,112020.0,112010.0,0.17855548]
[1756910304625,0.0549,112020.0,112010.0,0.17855548]
[1756910304861,0.06178582,112030.0,112020.0,0.17853954]
[1756910305077,0.21252677,112030.0,112020.0,0.17853954]
[1756910306555,0.39101241,112030.0,112010.0,0.17855548]
[1756910306752,0.16005,112020.0,112010.0,0.17855548]
[1756910307476,0.16202,112020.0,112010.0,0.17855548]
[1756910307914,0.00293,112020.0,112010.0,0.17855548]
[1756910308141,0.16001,112020.0,112010.0,0.17855548]
[1756910308393,0.0049,112020.0,112010.0,0.17855548]
[1756910308616,0.16198,112020.0,112010.0,0.17855548]
[1756910309072,0.16198,112020.0,112010.0,0.17955548]
[1756910309295,0.78109604,112020.0,112010.0,0.17955548]
[1756910309523,0.62401604,112020.0,112010.0,0.17855548]
[1756910309746,0.78109604,112020.0,112010.0,0.17855548]
[1756910309981,0.78109604,112020.0,112010.0,0.17955548]
[1756910312204,1.00963558,112020.0,112010.0,0.001]
[1756910312436,0.62401604,112020.0,112010.0,0.17955548]
[1756910312675,0.78105604,112020.0,112010.0,0.17955548]
[1756910312918,0.62401604,112020.0,112010.0,0.17855548]
[1756910313314,0.62401604,112020.0,112010.0,0.18055548]
[1756910313447,0.62401604,112020.0,112010.0,0.17955548]
[1756910313637,0.62401604,112020.0,112010.0,0.17855548]
[1756910313840,0.00046677,112030.0,112020.0,0.17853954]
[1756910314047,0.15746677,112030.0,112020.0,0.17853954]
[1756910314514,0.00046677,112030.0,112020.0,0.33553954]
[1756910314912,0.00339677,112030.0,112020.0,0.33553954]
[1756910315215,0.00536677,112030.0,112020.0,0.33553954]
[1756910315418,0.62448281,112030.0,112020.0,0.33553954]
[1756910315613,0.61958281,112030.0,112020.0,0.27045553]
[1756910315872,0.15746677,112030.0,112020.0,0.67045553]
[1756910316080,0.16039677,112030.0,112020.0,0.67045553]
[1756910316225,0.15746677,112030.0,112020.0,0.67145553]
[1756910316627,0.15746677,112030.0,112020.0,0.82841553]
[1756910316628,0.00046677,112030.0,112020.0,0.82841553]
[1756910316900,0.00339677,112030.0,112020.0,0.82841553]
[1756910317089,0.00536677,112030.0,112020.0,0.82841553]
[1756910317431,0.00536677,112030.0,112020.0,0.83041553]
[1756910317636,0.00536677,112030.0,112020.0,0.67345553]
[1756910317836,0.62448281,112030.0,112020.0,0.18153954]
[1756910318062,0.00536677,112030.0,112020.0,0.18153954]
[1756910318275,0.62448281,112030.0,112020.0,0.18153954]
[1756910318509,0.62448281,112030.0,112020.0,0.003]
[1756910318711,0.85300641,112030.0,112020.0,0.002]
[1756910319065,0.85300641,112030.0,112020.0,0.18153954]
[1756910319268,0.23389037,112030.0,112020.0,0.18153954]
[1756910319467,0.85300641,112030.0,112020.0,0.003]
[1756910319699,0.17853954,112020.0,112010.0,0.17855508]
[1756910319882,0.95963558,112020.0,112010.0,0.17855548]
[1756910320244,0.95963558,112020.0,112000.0,1.05312204]
[1756910320443,0.62219604,112010.0,112000.0,1.14503803]
[1756910320645,0.62417604,112010.0,112000.0,1.14503803]
[1756910320897,0.61911604,112010.0,112000.0,0.74503803]
[1756910321097,0.82911604,112020.0,112010.0,0.17855548]
[1756910321300,0.21198,112020.0,112010.0,0.17855548]
[1756910321539,0.83109604,112020.0,112010.0,0.17855548]
[1756910321777,1.00963558,112020.0,112010.0,0.17855548]
[1756910321968,1.00963558,112020.0,112000.0,0.31891803]
[1756910322169,0.85075152,112010.0,112000.0,0.17857142]
[1756910322369,0.85273152,112010.0,112000.0,0.17857142]
[1756910322575,0.67417604,112010.0,112000.0,0.17857142]
[1756910323357,0.67417604,112010.0,112000.0,0.17957142]
[1756910323562,0.67417604,112010.0,112000.0,0.18157142]
[1756910324122,0.66911604,112020.0,112010.0,0.17855548]
[1756910324376,0.21194,112020.0,112010.0,0.17855548]
[1756910324576,0.67417604,112020.0,112010.0,0.17855548]
[1756910324781,0.83105604,112020.0,112010.0,0.17855548]
[1756910325363,1.00959558,112020.0,112000.0,0.37470461]
[1756910325549,0.00308,112010.0,112000.0,0.8676206]
[1756910325741,0.00308,112010.0,112000.0,0.7107406]
[1756910325742,0.62219604,112010.0,112000.0,0.7107406]
[1756910325960,0.85273152,112010.0,112000.0,0.001]
[1756910326362,0.23361548,112010.0,112000.0,0.17957142]
[1756910326546,1.00961152,112010.0,112000.0,0.17957142]
[1756910326772,1.00961152,112010.0,111990.0,0.73546598]
[1756910326978,1.00653152,112010.0,112000.0,0.002]
[1756910327481,1.00961152,112010.0,112000.0,0.002]
[1756910327686,1.00961152,112010.0,112000.0,0.18057142]
[1756910328234,1.00961152,112010.0,112000.0,0.18157142]
[1756910328421,1.00957152,112010.0,112000.0,0.17957142]
[1756910328636,0.67417604,112010.0,112000.0,0.17857142]
[1756910328829,0.15992,112010.0,112000.0,0.17857142]
[1756910329072,1.01219604,112020.0,112010.0,0.17855548]
[1756910329314,1.34955558,112020.0,112010.0,0.17855548]
[1756910329507,0.17855548,112010.0,112000.0,0.18157142]
[1756910329707,0.62417604,112010.0,112000.0,0.18157142]
[1756910330092,0.62417604,112010.0,112000.0,0.17857142]
[1756910330290,1.16903604,112020.0,112010.0,0.17855548]
[1756910330494,1.17935984,112020.0,112010.0,0.17855548]
[1756910330693,1.20105938,112020.0,112010.0,0.17855548]
[1756910330909,0.07730615,112030.0,112010.0,0.17855548]
[1756910331113,0.55872976,112030.0,112020.0,0.17853954]
[1756910331315,1.1798258,112030.0,112020.0,0.17853954]
[1756910331518,0.22070976,112030.0,112020.0,0.17853954]
[1756910331724,0.01386976,112030.0,112020.0,0.17853954]
[1756910331924,0.00354677,112030.0,112020.0,0.17853954]
[1756910332135,0.00354677,112030.0,112020.0,0.27045553]
[1756910332349,0.00652677,112030.0,112020.0,0.27045553]
[1756910332564,0.00552677,112030.0,112020.0,0.27045553]
[1756910332902,0.62564281,112030.0,112020.0,0.27045553]
[1756910333330,0.63400495,112030.0,112020.0,0.27045553]
[1756910334386,0.81252855,112030.0,112020.0,0.27045553]
[1756910334545,0.63300495,112030.0,112020.0,0.27045553]
[1756910334744,0.63400495,112030.0,112020.0,0.27045553]
[1756910334946,0.01488891,112030.0,112020.0,0.27045553]
[1756910335163,0.81152855,112030.0,112020.0,0.27045553]
[1756910335586,0.63300495,112030.0,112020.0,0.27145553]
[1756910335971,0.86152855,112030.0,112020.0,0.18053954]
[1756910336651,0.68300495,112030.0,112020.0,0.18053954]
[1756910336893,1.01828855,112030.0,112020.0,0.18053954]
[1756910337101,0.86152855,112030.0,112020.0,0.18053954]
[1756910337307,0.83976495,112030.0,112020.0,0.18053954]
[1756910337946,1.01828855,112030.0,112020.0,0.18053954]
[1756910338904,0.83976495,112030.0,112020.0,0.18053954]
[1756910339076,1.01828855,112030.0,112020.0,0.18053954]
[1756910339241,1.01828855,112030.0,112020.0,0.002]
[1756910339449,1.01828855,112030.0,112020.0,0.18053954]
[1756910339865,1.01824855,112030.0,112020.0,0.18053954]
[1756910340054,0.68300495,112030.0,112020.0,0.18053954]
[1756910340283,1.01824855,112030.0,112020.0,0.002]
[1756910340447,1.01824855,112030.0,112020.0,0.18053954]
[1756910341091,1.01824855,112030.0,112020.0,0.002]
[1756910343863,1.35824855,112030.0,112020.0,0.002]
[1756910344806,1.20152855,112030.0,112020.0,0.002]
[1756910345002,1.35820855,112030.0,112020.0,0.002]
[1756910345470,1.20152855,112030.0,112020.0,0.002]
[1756910345920,1.35820855,112030.0,112020.0,0.002]
[1756910346760,1.02300495,112030.0,112020.0,0.18053954]
[1756910346891,0.83132281,112030.0,112020.0,0.18053954]
[1756910347129,1.00984641,112030.0,112020.0,0.18053954]
[1756910347327,0.05354677,112030.0,112020.0,0.18053954]
[1756910347534,0.83132281,112030.0,112020.0,0.18053954]
[1756910347911,1.00984641,112030.0,112020.0,0.002]
[1756910348112,1.00984641,112030.0,112020.0,0.18053954]
[1756910348740,0.82934281,112030.0,112020.0,0.18053954]
[1756910348946,0.83143281,112030.0,112020.0,0.18053954]
[1756910349155,0.67479281,112030.0,112020.0,0.18053954]
[1756910349608,0.83143281,112030.0,112020.0,0.18053954]
[1756910350934,0.61958281,112030.0,112020.0,0.18053954]
[1756910351137,0.00046677,112030.0,112020.0,0.27245553]
[1756910352452,0.00046677,112030.0,112020.0,0.33297036]
[1756910352667,0.00046677,112030.0,112020.0,0.9608709]
[1756910352854,0.00046677,112030.0,112020.0,1.3008709]
[1756910353288,0.00046677,112030.0,112020.0,0.68175486]
[1756910354091,0.00046677,112030.0,112020.0,0.68075486]
[1756910354299,0.00046677,112030.0,112020.0,0.67975486]
[1756910354519,0.00046677,112030.0,112020.0,0.68475486]
[1756910354751,0.00046677,112030.0,112020.0,0.68875486]
[1756910355372,0.00046677,112030.0,112020.0,1.08875486]
[1756910355830,0.00046677,112030.0,112020.0,1.24535486]
[1756910357065,0.00046677,112030.0,112020.0,1.08875486]
[1756910357247,0.00046677,112030.0,112020.0,1.24531486]
[1756910358422,0.00046677,112030.0,112020.0,1.8644309]
[1756910359030,0.00046677,112030.0,112020.0,1.9054009]
[1756910359239,0.00046677,112030.0,112020.0,1.28628486]
[1756910359416,0.00046677,112030.0,112020.0,1.9054009]
[1756910359623,0.00259914,112050.0,112040.0,0.19944649]
[1756910359840,0.00273908,112050.0,112040.0,0.51652248]
[1756910360228,0.00273908,112050.0,112040.0,1.87563852]
[1756910360427,0.00273908,112050.0,112040.0,1.25652248]
[1756910361013,0.00273908,112050.0,112040.0,1.87763852]
[1756910361219,0.00273908,112050.0,112040.0,1.26152248]
[1756910361420,0.00273908,112050.0,112040.0,1.88063852]
[1756910361637,0.0133369,112070.0,112060.0,0.19941463]
[1756910361841,0.0133369,112070.0,112060.0,0.44785062]
[1756910362240,0.0133369,112070.0,112060.0,0.84785062]
[1756910362876,0.0133369,112070.0,112060.0,0.69133062]
[1756910363083,0.0133369,112070.0,112060.0,0.84781062]
[1756910364062,0.0133369,112070.0,112060.0,0.69133062]
[1756910364263,0.0133369,112070.0,112060.0,0.84781062]
[1756910364467,0.0143369,112070.0,112060.0,0.84781062]
[1756910364690,0.0133369,112070.0,112060.0,0.84781062]
[1756910364903,0.0133369,112070.0,112060.0,0.69133062]
[1756910365105,0.0133369,112070.0,112060.0,0.69533062]
[1756910365348,0.0162769,112070.0,112060.0,0.85181062]
[1756910365723,0.0184069,112070.0,112060.0,0.85177062]
[1756910365933,0.0162769,112070.0,112060.0,0.85177062]
[1756910366478,0.63752294,112070.0,112060.0,0.8308318]
[1756910366702,0.0184069,112070.0,112060.0,0.8308318]
[1756910366924,0.0184069,112070.0,112060.0,0.87132252]
[1756910367391,0.0184069,112070.0,112060.0,0.86932252]
[1756910367600,0.0133369,112070.0,112060.0,0.86932252]
[1756910367826,0.0184069,112070.0,112060.0,0.86732252]
[1756910368030,0.0184069,112070.0,112060.0,0.86832252]
[1756910368186,0.0184069,112070.0,112060.0,0.86932252]
[1756910368505,0.0184069,112070.0,112060.0,0.86832252]
[1756910368928,0.0184069,112070.0,112060.0,0.86932252]
[1756910369141,0.0162769,112070.0,112060.0,0.86932252]
[1756910369340,0.0133369,112070.0,112060.0,0.89026134]
[1756910370193,0.0133369,112070.0,112060.0,0.89226134]
[1756910371442,0.0133369,112070.0,112060.0,1.39058903]
[1756910371876,0.0133369,112070.0,112060.0,0.89226134]
[1756910372082,0.0083369,112070.0,112060.0,0.89226134]
[1756910373685,0.0083369,112070.0,112060.0,1.39058903]
[1756910374094,0.0083369,112070.0,112060.0,0.89226134]
[1756910374537,0.0112769,112070.0,112060.0,0.89218134]
[1756910375179,0.0083369,112070.0,112060.0,0.89218134]
[1756910376554,0.0083369,112070.0,112060.0,1.23218134]
[1756910378409,0.00294,112080.0,112070.0,0.19939871]
[1756910378612,0.50339769,112080.0,112070.0,0.3599147]
[1756910378821,0.00507,112080.0,112070.0,0.3599147]
[1756910379032,0.50339769,112080.0,112070.0,0.7599147]
[1756910380362,0.50339769,112080.0,112070.0,0.76978308]
[1756910380706,0.50339769,112080.0,112070.0,0.76878308]
[1756910380911,0.49832769,112080.0,112070.0,0.76878308]
[1756910381117,0.50355769,112080.0,112070.0,0.77078308]
[1756910381448,0.50355769,112080.0,112070.0,0.92906308]
[1756910381849,0.50355769,112080.0,112070.0,0.77278308]
[1756910382051,0.50355769,112080.0,112070.0,0.92906308]
[1756910383648,0.50051069,112080.0,112070.0,0.92906308]
[1756910384217,0.49852769,112090.0,112080.0,0.17844396]
[1756910384412,0.50069752,112090.0,112080.0,0.42663995]
[1756910384615,0.00033983,112090.0,112080.0,0.52112508]
[1756910384825,0.00194917,112100.0,112090.0,0.51842804]
[1756910385032,0.00194917,112100.0,112090.0,0.78756285]
[1756910385237,8e-05,112130.0,112100.0,0.51841213]
[1756910385451,0.00021981,112130.0,112120.0,0.19931912]
[1756910385663,0.00341981,112130.0,112120.0,0.29123511]
[1756910385867,0.00021981,112130.0,112120.0,0.29123511]
[1756910386121,0.0002,112140.0,112130.0,0.17836439]
[1756910386322,0.08830961,112180.0,112170.0,0.17830079]
[1756910386538,0.55821565,112180.0,112170.0,0.33454079]
[1756910386942,0.54988705,112180.0,112170.0,0.33454079]
[1756910387189,0.80608633,112180.0,112170.0,0.33454079]
[1756910387377,1.93704103,112180.0,112170.0,0.17830079]
[1756910387568,1.93743698,112180.0,112170.0,0.33454079]
[1756910387767,1.93743698,112180.0,112170.0,0.17830079]
[1756910387972,1.93943698,112180.0,112170.0,0.17830079]
[1756910388178,0.00571653,112180.0,112170.0,0.2932156]
[1756910388376,0.00368653,112180.0,112170.0,0.2932156]
[1756910388588,0.01370142,112190.0,112180.0,0.19922371]
[1756910388790,0.01370142,112190.0,112180.0,0.27020088]
[1756910388970,0.01587146,112190.0,112180.0,0.46723388]
[1756910389181,0.01587146,112190.0,112180.0,0.3319727]
[1756910389573,0.01587146,112190.0,112180.0,0.4881727]
[1756910389796,0.51321408,112190.0,112180.0,0.4881727]
[1756910390046,0.51321408,112190.0,112180.0,0.4871727]
[1756910390353,0.01587146,112190.0,112180.0,0.46623388]
[1756910390527,0.51321408,112190.0,112180.0,0.46619388]
[1756910390729,0.51321408,112190.0,112180.0,0.46719388]
[1756910390933,0.51321408,112190.0,112180.0,0.46919388]
[1756910391379,0.51321408,112190.0,112180.0,0.46719388]
[1756910391595,0.51321408,112190.0,112180.0,0.31103388]
[1756910391791,0.56161408,112190.0,112180.0,0.21911789]
[1756910392458,0.01587146,112190.0,112180.0,0.31103388]